[Event "45th FIDE Olympiad 2024"]
[Site "Budapest"]
[Date "2024.09.18"]
[Round "7.65"]
[White "Wu, Li"]
[Black "Celis, Joel"]
[Result "1-0"]
[WhiteElo "2325"]
[BlackElo "1929"]
[PlyCount "57"]
[EventDate "2024.09.05"]
[EventType "team-tourn"]
[EventCountry "HUN"]
[WhiteTeam "Isle of Man"]
[BlackTeam "Macau, China"]
[WhiteTeamCountry "IOM"]
[TimeControl "40/5400+30:1800+30"]

1. d4 Nf6 2. c4 e5 3. dxe5 Ng4 4. e4 Nxe5 5. f4 Nec6 6. Nc3 d6 7. Be3 g6 8. Qd2 Bg7 9. Nf3 O-O 10. O-O-O Re8 11. h3 Bxc3 12. Qxc3 Rxe4 13. g4 Nd7 14. Ng5 Re8 15. Bg2 Qf6 16. Qd2 h6 17. Ne4 Qe6 18. f5 Qxc4+ 19. Nc3 Nb4 20. Kb1 Ne5 21. Bf1 Qc6 22. Bb5 Nc4 23. Qd4 Qb6 24. Bxe8 Nxe3 25. Qf6 Bxf5+ 26. gxf5 Rxe8 27. fxg6 Rf8 28. gxf7+ Kh7 29. Rhg1 1-0

[Event "45th FIDE Olympiad 2024"]
[Site "Budapest"]
[Date "2024.09.18"]
[Round "7.66"]
[White "Naiditsch, Arkadij"]
[Black "Fawzy, Adham"]
[Result "1-0"]
[ECO "B31"]
[WhiteElo "2643"]
[BlackElo "2507"]
[Annotator "TA"]
[PlyCount "75"]
[EventDate "2024.09.05"]
[EventType "team-tourn"]
[EventCountry "HUN"]
[SourceTitle "playchess.com"]
[Source "ChessBase"]
[SourceQuality "1"]
[WhiteTeam "Bulgaria"]
[BlackTeam "Egypt"]
[WhiteTeamCountry "BUL"]
[BlackTeamCountry "EGY"]
[TimeControl "40/5400+30:1800+30"]

{[%evp 9,75,17,22,29,27,26,17,25,12,31,27,14,17,0,39,42,50,53,47,48,57,71,67,64,74,66,94,92,119,118,142,128,154,101,108,91,152,153,121,165,148,122,232,272,331,348,370,361,378,394,386,397,441,437,551,575,525,529,758,741,1231,1089,1566,1404,1793,1820,2248,1814]} 1. e4 c5 2. Nf3 Nc6 3. Bb5 g6 4. Bxc6 bxc6 5. d4 d5 6. exd5 Qxd5 7. Nc3 Qc4 8. Qe2 {The position is equal.} Qxe2+ 9. Nxe2 f6 10. Be3 cxd4 11. Nfxd4 e5 12. Nxc6 {[%cal Bd4c6,Bc6a5,Ba5b7][%mdl 32]} a5 13. Bd2 a4 14. Na5 {Prevents Bb7. Excellent horsemanship.} Bf5 15. c4 Bd6 16. b4 Bc7 17. Nc3 Ne7 18. Nb7 O-O {[%cal Bh8f8,Bf8d8,Bd8d3][%mdl 32]} 19. Nb5 Bb8 20. O-O {White is more active.} Nc6 21. Rfc1 ({White should try} 21. Rac1) 21... a3 $16 22. f3 Bd3 (22... Nd4 $142) 23. Nc5 Rd8 {[%cal Oe5e4]} 24. Nxd3 Rxd3 25. Be1 {Rd1 would now be deadly.} f5 {[#]} (25... e4 $16 {was called for.}) 26. Rd1 $1 $18 Rxd1 27. Rxd1 Kf7 28. Rd3 Ke6 29. Rxa3 ({Less strong is} 29. Nxa3 e4 30. fxe4 fxe4 $14) 29... Rxa3 30. Nxa3 {[%mdl 4096] Endgame. KBN-KBN} Nd4 31. Nb5 {White is clearly winning.} Nc2 32. Kf2 e4 33. fxe4 Bxh2 34. exf5+ Kxf5 35. a4 {[%cal Ba2a4,Ba4a5,Ba5a6][%mdl 32]} Ke4 36. a5 Kd3 37. a6 {[#] Black must now prevent a7.} Bb8 38. c5 {Weighted Error Value: White=0.04 (flawless) /Black=0.26 (precise) .  Mistake:       	White=1     	Black=2      Inaccurate:     	---       	Black=4      OK:         	White=15    	Black=9      Best:        	White=1     	---        Strong:       	White=1     	---} 1-0

[Event "45th FIDE Olympiad 2024"]
[Site "Budapest"]
[Date "2024.09.18"]
[Round "7.66"]
[White "Mak, Tong Kuan"]
[Black "Fabri, Henrik"]
[Result "1/2-1/2"]
[WhiteElo "1902"]
[BlackElo "1936"]
[PlyCount "60"]
[EventDate "2024.09.05"]
[EventType "team-tourn"]
[EventCountry "HUN"]
[WhiteTeam "Macau, China"]
[BlackTeam "Isle of Man"]
[BlackTeamCountry "IOM"]
[TimeControl "40/5400+30:1800+30"]

1. e4 c5 2. Nf3 Nf6 3. e5 Nd5 4. c3 e6 5. d4 cxd4 6. cxd4 Nc6 7. Nc3 Nxc3 8. bxc3 d5 9. Bd3 Be7 10. O-O Bd7 11. Rb1 Rb8 12. Qc2 h6 13. Nd2 O-O 14. f4 f5 15. exf6 Bxf6 16. Nf3 Qc7 17. Qe2 Na5 18. Bd2 Nc4 19. Ne5 Bxe5 20. fxe5 Nxd2 21. Qxd2 a6 22. Qe3 Bb5 23. Bxb5 axb5 24. Rfc1 Ra8 25. Qd2 Qc4 26. Rc2 Ra3 27. h3 Rfa8 28. Rb4 Qc6 29. Kh2 Qa6 30. Rbb2 Qc6 1/2-1/2

[Event "45th FIDE Olympiad 2024"]
[Site "Budapest"]
[Date "2024.09.18"]
[Round "7.67"]
[White "Wageih, Kareim"]
[Black "Petrov, Martin"]
[Result "0-1"]
[ECO "E14"]
[WhiteElo "2402"]
[BlackElo "2536"]
[Annotator "TA"]
[PlyCount "50"]
[EventDate "2024.09.05"]
[EventType "team-tourn"]
[EventCountry "HUN"]
[SourceTitle "playchess.com"]
[Source "ChessBase"]
[SourceQuality "1"]
[WhiteTeam "Egypt"]
[BlackTeam "Bulgaria"]
[WhiteTeamCountry "EGY"]
[BlackTeamCountry "BUL"]
[TimeControl "40/5400+30:1800+30"]

{[%evp 17,50,0,0,-8,-4,-24,-21,-20,-10,-34,0,0,1,0,12,0,10,0,0,2,-13,-26,0,-15,-5,-12,-22,-35,-48,-120,-37,-344,-333,-610,-602]} 1. Nf3 Nf6 2. b3 d5 3. Bb2 e6 4. e3 Bd6 5. c4 O-O 6. d4 b6 7. Bd3 Bb7 8. Nbd2 Nbd7 9. O-O Ne4 10. Qe2 a5 11. a4 f5 12. Rac1 {The position is equal.} Rf6 13. Rfd1 Nxd2 (13... Rh6 {with more complications.} 14. Nf1 Qe8 15. Ne5 Bxe5 16. dxe5 Ndc5) 14. Rxd2 Rh6 15. g3 Qe8 16. Rdc2 {[#] Strongly threatening c5.} dxc4 17. bxc4 {next c5 is good for White.} Qh5 18. Nh4 {Threatens to win with c5.} Qxe2 19. Rxe2 g5 20. Ng2 Bf3 $36 {[%mdl 2048] Black has some pressure.} 21. Ree1 Bb4 22. Rf1 Nf6 {[#] White must now prevent ...Ng4.} 23. h4 (23. d5 $1 $15) 23... Ng4 {Black is more active.} (23... gxh4 $17 24. Nxh4 Rxh4 25. gxh4 Kf7) 24. Bc3 $2 {[%mdl 8192]} (24. Bc2 $15) 24... gxh4 $19 25. Bxb4 $2 (25. Nxh4 Rxh4 26. gxh4) 25... h3 {Weighted Error Value: White=0.66/Black=0.09 (flawless) .  Loses game:     	White=1     	---        Mistake:       	White=2     	Black=1      Inaccurate:     	---       	Black=1      OK:         	White=3     	Black=9      Best:        	---       	Black=2} (25... axb4 26. Nxh4 Rxh4 27. gxh4 $17) 0-1

[Event "45th FIDE Olympiad 2024"]
[Site "Budapest"]
[Date "2024.09.18"]
[Round "7.67"]
[White "Ormsby, Alan"]
[Black "Wong, Kai Meng"]
[Result "1/2-1/2"]
[WhiteElo "1914"]
[BlackElo "1795"]
[PlyCount "112"]
[EventDate "2024.09.05"]
[EventType "team-tourn"]
[EventCountry "HUN"]
[WhiteTeam "Isle of Man"]
[BlackTeam "Macau, China"]
[WhiteTeamCountry "IOM"]
[TimeControl "40/5400+30:1800+30"]

1. d4 Nf6 2. Bg5 d5 3. e3 Nbd7 4. Nf3 h6 5. Bf4 e6 6. Bd3 c5 7. c3 Be7 8. Nbd2 O-O 9. Ne5 Nxe5 10. dxe5 Nd7 11. Qh5 Bg5 12. h4 Bxf4 13. exf4 c4 14. Bc2 Nc5 15. Nf3 Nd3+ 16. Bxd3 cxd3 17. Nd4 Bd7 18. Rh3 Qb6 19. O-O-O Qa6 20. Kb1 d2 21. Qe2 Qxe2 22. Nxe2 f6 23. Re3 fxe5 24. Rxe5 Bb5 25. Rxd2 Bxe2 26. Rdxe2 Rxf4 27. g3 Rf3 28. Rxe6 Raf8 29. Rd6 Rxf2 30. Rxf2 Rxf2 31. Rxd5 Rg2 32. Rd3 Kh7 33. c4 Kg6 34. b4 Kf5 35. c5 Ke4 36. Rd7 Rxg3 37. Rxb7 Kd4 38. Kb2 a5 39. bxa5 Kxc5 40. a6 Rg2+ 41. Ka3 Rg6 42. a7 Ra6+ 43. Kb3 g5 44. hxg5 hxg5 45. Rg7 Kb6 46. Rxg5 Kxa7 47. Rg7+ Ka8 48. a4 Rb6+ 49. Kc4 Re6 50. Kb5 Rf6 51. Rh7 Rg6 52. a5 Rf6 53. Rg7 Re6 54. Rh7 Rf6 55. Rg7 Re6 56. Rh7 Rf6 1/2-1/2

[Event "45th FIDE Olympiad 2024"]
[Site "Budapest"]
[Date "2024.09.18"]
[Round "7.68"]
[White "Petkov, Momchil"]
[Black "Wafa, Hamed"]
[Result "1-0"]
[ECO "A60"]
[WhiteElo "2540"]
[BlackElo "2368"]
[Annotator "TA"]
[PlyCount "79"]
[EventDate "2024.09.05"]
[EventType "team-tourn"]
[EventCountry "HUN"]
[SourceTitle "playchess.com"]
[Source "ChessBase"]
[SourceQuality "1"]
[WhiteTeam "Bulgaria"]
[BlackTeam "Egypt"]
[WhiteTeamCountry "BUL"]
[BlackTeamCountry "EGY"]
[TimeControl "40/5400+30:1800+30"]

{[%evp 9,79,13,38,16,15,0,16,10,26,16,45,5,17,0,16,0,13,10,38,14,16,8,0,16,104,119,224,212,230,226,240,236,315,299,351,329,365,369,391,383,364,369,461,482,557,547,549,557,576,564,635,570,560,559,543,541,527,527,884,953,867,864,849,837,801,665,733,722,670,652,29984,29985]} 1. d4 Nf6 2. c4 e6 3. g3 c5 4. d5 exd5 5. cxd5 d6 6. Nf3 g6 7. a4 Bg7 8. Bg2 {The position is equal.} O-O 9. Nfd2 Re8 10. O-O Nbd7 11. Na3 b6 12. h3 Bb7 13. e4 a6 {[%cal Ob6b5]} 14. Rb1 b5 15. axb5 axb5 16. Nxb5 Ne5 {[#]} (16... Qb8 $1 $11) 17. f4 $1 $16 {White stays focused until the end.} Ba6 (17... Nd3 $16) 18. fxe5 $18 Bxb5 19. exf6 (19. Rxf6 Bxf6 20. exf6 Bd3 $11) 19... Bxf1 20. Qxf1 ({Much less strong is} 20. Nxf1 $6 Qxf6 21. Bf4 Reb8 $16) 20... Bxf6 21. Nc4 {[%cal Bd2c4,Bc4a5,Ba5c6][%mdl 32]} Qe7 22. Bf4 Bd4+ 23. Kh2 Rad8 24. h4 f6 25. Na5 Ra8 {[%cal Bd8a8,Ba8a7,Ba7f7][%mdl 32]} 26. Nc6 Qc7 27. Nxd4 cxd4 28. Rc1 {Dodges Qc2} Qb6 29. Bh6 Ra7 30. Rc2 {[%cal Og2h3] [#] Threatens to win with Bh3!} Rf7 31. Rf2 f5 32. exf5 d3 33. Rf3 {Black must now prevent fxg6.} Qxb2 34. fxg6 ({And not} 34. Qxd3 Re2 $11) 34... Rxf3 35. Qxf3 {Intending Qf7+ and mate.} hxg6 36. Qxd3 Kh7 37. Qd2 Qb5 38. Be3 Qc4 39. Qf2 Kg7 {Repels Qf7+} 40. Bd4+ {Weighted Error Value: White=0.12 (very precise) /Black=0.52.  Mistake:       	---       	Black=2      Inaccurate:     	White=1     	Black=3      OK:         	White=13    	Black=10     Best:        	White=3     	---        Strong:       	White=1     	---} 1-0

[Event "45th FIDE Olympiad 2024"]
[Site "Budapest"]
[Date "2024.09.18"]
[Round "7.69"]
[White "Fedoseev, Vladimir"]
[Black "Rodrigue-Lemieux, Shawn"]
[Result "1-0"]
[ECO "E05"]
[WhiteElo "2692"]
[BlackElo "2509"]
[Annotator "TA"]
[PlyCount "99"]
[EventDate "2024.09.05"]
[EventType "team-tourn"]
[EventCountry "HUN"]
[SourceTitle "playchess.com"]
[Source "ChessBase"]
[SourceQuality "1"]
[WhiteTeam "Slovenia"]
[BlackTeam "Canada"]
[WhiteTeamCountry "SLO"]
[BlackTeamCountry "CAN"]
[TimeControl "40/5400+30:1800+30"]

{[%evp 18,99,10,14,13,6,11,5,24,13,4,8,30,10,19,0,14,-10,0,-6,0,0,0,14,0,0,0,0,22,19,11,10,27,5,12,0,33,14,58,53,52,52,129,127,125,100,103,25,32,0,22,15,33,29,180,159,179,179,167,154,154,157,164,164,139,164,137,158,155,143,436,426,483,483,471,474,540,537,5216,329,5357,466,29980,29981]} 1. d4 Nf6 2. c4 e6 3. Nf3 d5 4. g3 Be7 5. Bg2 O-O 6. O-O dxc4 7. Qa4 a6 8. Qxc4 b5 9. Qc2 Bb7 10. Bd2 Ra7 11. Rc1 Be4 12. Qb3 Nc6 {[%cal Oe4f3] Prevents Bb4. The position is equal.} 13. e3 Qa8 14. Qd1 b4 {Inhibits Nc3.} 15. Be1 a5 16. Bf1 Bd5 17. Bc4 a4 18. Bxd5 exd5 19. a3 Na5 20. Nfd2 {Repels Nb3} bxa3 21. Nxa3 Rb8 {Prevents Nb5} 22. Nab1 Rxb2 {And now ...Nc6 would win.} 23. Rxa4 h5 24. Nc3 Rbb7 25. Qf3 c6 26. Rca1 h4 27. gxh4 Nd7 28. h5 Nb6 29. R4a2 Bb4 ({Better is} 29... Nac4 $14) 30. Nf1 $1 $16 {[%cal Oh5h6]} Nac4 31. Rxa7 Rxa7 32. Rd1 (32. Rxa7 $16 Qxa7 33. Nb5) 32... Ra1 $11 33. h6 {[%cal Oc3d5] Nxd5! is the strong threat.} gxh6 (33... Rxd1 $5 34. Qxd1 g6 $16) 34. Ng3 $36 {[%mdl 2048] White is pushing.} Nb2 35. Nf5 {White threatens Qg3+ and mate.} Nxd1 $2 (35... Bf8 $1 $11 36. Rxa1 Qxa1 37. Qg4+ Kh7) 36. Qg3+ $1 $18 Kf8 {[%cal Bg8f8,Bf8e8,Be8d8,Bd8c7,Bc7b6,Bb6a7][%mdl 32] [#]} 37. Nb5 {[%cal Bc3b5,Bb5d6,Bd6e8][%mdl 544]} Nxe3 {[%cal Ra1e1]} (37... Bxe1 38. Qg7+ Ke8 39. Qe5+ (39. Qxh6 $2 Bxf2+ 40. Kg2 cxb5 $19) (39. Nc7+ Kd8 $18) 39... Kd7 40. Qe7+ Kc8 41. Qc7#) 38. Qg7+ Ke8 {[%cal Ra1e1] [#]} 39. Qg8+ $1 (39. Qe5+ Kd7 40. Qc7+ Ke6 41. Qe5+ Kd7 42. Qc7+ Ke6 43. Qe5+ Kd7 $11) 39... Bf8 {[%cal Ra1e1]} (39... Kd7 40. Qxf7+ Kd8 41. Qc7+ (41. Qg8+ Kd7 42. Qf7+ Kd8 43. Qc7+ Ke8 44. Nbd6+ Bxd6 45. Nxd6+ Kf8 46. Qf7#) 41... Ke8 42. Nbd6+ (42. fxe3 Rxe1+ 43. Kg2 Nd7 $11) 42... Bxd6 43. Nxd6+ Kf8 44. Qf7#) 40. Nbd6+ (40. Nxe3 $2 Rxe1+ (40... cxb5 $2 41. Ng2 $19) 41. Kg2 cxb5 $19) 40... Kd8 {[%cal Ra1e1]} 41. Qxf8+ Kc7 {[%cal Ra1e1]} 42. Qe7+ (42. Qxh6 $2 Rxe1#) 42... Nd7 {[%cal Ra1e1]} 43. Qxe3 {Hoping for Ne8+. White is more active.} h5 $2 {[%mdl 8192] A mistake that costs the game.} (43... Qa5 $16 44. Kf1 Qa3 45. Qxa3 (45. Nxf7 Qxe3 46. fxe3 h5 $18) 45... Rxa3 46. Nxh6 (46. Nxf7 h5 $18) 46... Rh3 (46... Kxd6 $2 47. Bb4+ Ke6 48. Bxa3 $18)) 44. Ne8+ {A dynamic duo of knights.} (44. Nxf7 $2 {is the wrong capture.} Qg8+ 45. Qg3+ (45. Ng5 $2 Rxe1+ 46. Qxe1 Qxg5+ 47. Ng3 h4 $19) 45... Qxg3+ 46. hxg3 Rxe1+ 47. Kg2 Kb7 $19) 44... Kb6 45. Qb3+ ({Don't take} 45. Qe7 Qa4 46. Ned6 Ka6 47. Qe2+ Ka7) 45... Ka7 46. Qc3 {Black is weak on the dark squares} Ra4 47. Nfd6 {[%cal Oe8c7] Black must now prevent Nc7!} Nb6 48. Kg2 $2 (48. Qc5 {[%cal Oe1a5]} Ra1 49. Kg2) 48... h4 $2 (48... Nc4 49. Qb3 Ra1) 49. h3 (49. Qc5 $142 {[%cal Oe1a5] Ba5! would kill now.} Ra6 50. Nc7) 49... f5 (49... Nc4 $18 50. Qb3 Ra1) 50. Qc5 {Weighted Error Value: White=0.36/Black=0.46.  Loses game:     	---       	Black=1      Mistake:       	White=2     	Black=4      Inaccurate:     	White=1     	Black=3      OK:         	White=13    	Black=8      Best:        	White=7     	Black=7      Strong:       	White=3     	---        Brilliant:      	White=1     	---} 1-0

[Event "45th FIDE Olympiad 2024"]
[Site "Budapest"]
[Date "2024.09.18"]
[Round "7.69"]
[White "Mompel Ferruz, Xavier"]
[Black "Houssein, Mohamed Bilal"]
[Result "1-0"]
[WhiteElo "2273"]
[BlackElo "1870"]
[PlyCount "57"]
[EventDate "2024.09.05"]
[EventType "team-tourn"]
[EventCountry "HUN"]
[WhiteTeam "Equatorial Guinea"]
[BlackTeam "Djibouti"]
[BlackTeamCountry "DJI"]
[TimeControl "40/5400+30:1800+30"]

1. e4 c5 2. Nf3 d6 3. d4 cxd4 4. Nxd4 Nf6 5. Nc3 a6 6. Be3 e5 7. Nb3 Be7 8. h3 Be6 9. f4 exf4 10. Bxf4 Nc6 11. Qe2 Ne5 12. O-O-O Nfd7 13. g4 Rc8 14. Qg2 Rxc3 15. bxc3 Qc7 16. Qg3 b5 17. g5 Nb6 18. Kd2 Na4 19. Nd4 O-O 20. Nxe6 fxe6 21. Bxe5 dxe5 22. Bd3 Qxc3+ 23. Ke2 Qd4 24. Rdf1 Nc3+ 25. Ke1 Rd8 26. Qf2 Qb4 27. Qf7+ Kh8 28. a3 Nxe4+ 29. axb4 1-0

[Event "45th FIDE Olympiad 2024"]
[Site "Budapest"]
[Date "2024.09.18"]
[Round "7.70"]
[White "Panjwani, Raja"]
[Black "Subelj, Jan"]
[Result "0-1"]
[ECO "A17"]
[WhiteElo "2460"]
[BlackElo "2498"]
[Annotator "TA"]
[PlyCount "88"]
[EventDate "2024.09.05"]
[EventType "team-tourn"]
[EventCountry "HUN"]
[SourceTitle "playchess.com"]
[Source "ChessBase"]
[SourceQuality "1"]
[WhiteTeam "Canada"]
[BlackTeam "Slovenia"]
[WhiteTeamCountry "CAN"]
[BlackTeamCountry "SLO"]
[TimeControl "40/5400+30:1800+30"]

{[%evp 9,88,0,5,0,15,0,31,19,26,26,32,18,35,10,9,13,12,2,8,0,-3,0,57,51,47,31,60,51,78,51,49,55,50,0,0,0,0,-66,-31,-16,-19,-17,-17,-16,-15,-22,-3,-8,-9,-25,-25,-27,-31,-44,-65,-62,-95,-347,-271,-286,-329,-350,-334,-310,-295,-1442,-1322,-2554,-1631,-2393,-2461,-5011,-2863,-2557,-2440,-2448,-1250,-1733,-1860,-1446,-1376]} 1. Nf3 Nf6 2. c4 e6 3. Nc3 d5 4. e3 Bd6 5. d4 O-O 6. b3 (6. c5 $5 Be7 $8 7. b4 $11) 6... a6 7. Bd3 dxc4 8. bxc4 {White is slightly better.} c5 9. O-O Nbd7 10. Qc2 h6 11. Rd1 Qc7 12. Bb2 cxd4 13. exd4 b6 14. h3 Bb7 15. Nd2 e5 (15... Rac8 $11) 16. d5 $14 Nc5 17. a4 {[%cal Oa4a5]} Nxd3 18. Qxd3 Nh5 19. Nce4 {aiming for Nxd6.} Bb4 20. Qb3 a5 21. Nf3 ({White should play} 21. Bc3 $14) 21... Rae8 $11 22. Ba3 f5 23. Bxb4 (23. Nc3 $11) 23... axb4 $15 24. Ng3 Nxg3 25. fxg3 e4 26. Nd4 {[%cal Od4e6]} e3 {...e2 is the strong threat.} 27. Ne2 $1 Re4 $36 {[%mdl 2048] Black fights for an advantage.} 28. Qxb4 Rxc4 (28... Qxc4 {simplifies} 29. Qxc4 Rxc4 30. Rd3 Re4) 29. Qb3 Qc5 30. d6 {Rac1 would now be deadly.} Kh7 {Strongly threatening ...Qc6.} 31. Qb5 Rc2 32. Qxc5 bxc5 33. Nf4 {[%mdl 8192] [#] This costs White the game.} (33. Re1 $17 {was necessary.}) 33... g5 $1 $19 34. Nd5 e2 35. Rd3 {[#]} c4 $1 36. Rd4 c3 37. Ne3 (37. Kf2 Rd2 38. Rxd2 cxd2 39. Kxe2 Bxd5 40. Rd1) 37... Rd2 {Black is clearly winning.} 38. Rc4 f4 (38... Rxd6 $2 39. Rxc3 (39. Rc7+ Kg8 $19) 39... f4 40. gxf4 gxf4 41. Re1 fxe3 42. Rxe2 $19) 39. gxf4 gxf4 40. Rc7+ Kg6 41. Nc2 Rd1+ 42. Kf2 Ba6 43. Ne1 Rxa1 44. d7 Rxa4 {Weighted Error Value: White=0.75/Black=0.25 (precise) .  Loses game:     	White=1     	---        Mistake:       	White=3     	Black=1      Inaccurate:     	White=2     	Black=4      OK:         	White=11    	Black=14     Best:        	White=1     	Black=3      Strong:       	White=1     	Black=2} 0-1

[Event "45th FIDE Olympiad 2024"]
[Site "Budapest"]
[Date "2024.09.18"]
[Round "7.70"]
[White "Omar, Aden Omar"]
[Black "Oscar, Naranjo Gonzalez"]
[Result "1-0"]
[WhiteElo "1779"]
[BlackElo "1861"]
[Annotator "COMBH"]
[PlyCount "113"]
[EventDate "2024.09.05"]
[EventType "team-tourn"]
[EventCountry "HUN"]
[WhiteTeam "Djibouti"]
[BlackTeam "Equatorial Guinea"]
[WhiteTeamCountry "DJI"]
[TimeControl "40/5400+30:1800+30"]

1. e4 e6 2. d4 d5 3. Nd2 Nf6 4. e5 Nfd7 5. Bd3 c5 6. c3 Nc6 7. Ne2 a5 8. Nf3 Qb6 9. h4 cxd4 10. cxd4 Bb4+ 11. Kf1 Be7 12. a3 f6 13. Nf4 Nf8 14. Rb1 Bd7 15. Nh5 Rg8 16. Be3 Rc8 17. Rh3 fxe5 18. dxe5 d4 19. Bg5 h6 20. Bxe7 Nxe7 21. Nf4 Bb5 22. Nxd4 Bxd3+ 23. Rxd3 g6 24. Qa4+ Kf7 25. Nb5 Kg7 26. Rd6 Rc6 27. Rbd1 Qc5 28. Re1 Nf5 29. Rxc6 bxc6 30. Nc7 Kf7 31. Qb3 Qe7 32. Qb7 Nd4 33. Rd1 c5 34. b4 axb4 35. axb4 Nd7 36. Ncxe6 Nxe5 37. Qxe7+ Kxe7 38. Nxd4 cxd4 39. Rxd4 Rb8 40. Rd5 Kf6 41. b5 g5 42. hxg5+ hxg5 43. Ne2 Ke6 44. Rd1 Nc4 45. Nd4+ Kf6 46. Rc1 Rc8 47. Nc6 Ne5 48. Ke2 Re8 49. Kd2 Nd7 50. Kd3 Ra8 51. Rc3 Ke6 52. Nd4+ Kd5 53. Nc2 Nc5+ 54. Ke3 Rb8 55. Nb4+ Kd6 56. Rxc5 Re8+ 57. Kd4 1-0

[Event "45th FIDE Olympiad 2024"]
[Site "Budapest"]
[Date "2024.09.18"]
[Round "7.71"]
[White "Sebenik, Matej"]
[Black "Preotu, Razvan"]
[Result "1/2-1/2"]
[ECO "A34"]
[WhiteElo "2515"]
[BlackElo "2451"]
[Annotator "TA"]
[PlyCount "61"]
[EventDate "2024.09.05"]
[EventType "team-tourn"]
[EventCountry "HUN"]
[SourceTitle "playchess.com"]
[Source "ChessBase"]
[SourceQuality "1"]
[WhiteTeam "Slovenia"]
[BlackTeam "Canada"]
[WhiteTeamCountry "SLO"]
[BlackTeamCountry "CAN"]
[TimeControl "40/5400+30:1800+30"]

{[%evp 9,61,22,10,0,0,-2,0,0,0,0,9,18,15,15,20,16,21,0,32,16,35,36,27,32,37,0,0,0,0,0,0,0,0,0,0,0,0,0,0,0,0,0,0,0,0,0,0,0,0,0,0,0,0,0]} 1. Nf3 c5 2. c4 Nc6 3. Nc3 e5 {[%cal Be7e5,Be5e4][%mdl 32]} 4. e3 Nf6 5. d4 e4 6. d5 exf3 7. dxc6 dxc6 8. Qxd8+ Kxd8 9. gxf3 g6 10. b3 Bg7 {[%cal Of6e4]} 11. Bb2 b6 12. O-O-O+ Kc7 13. h4 Bf5 14. Ne2 {[%cal Bc3e2,Be2g3,Bg3e4][%mdl 32]} Nh5 15. Bxg7 Nxg7 16. Ng3 h5 17. Bd3 Bxd3 {The position is equal.} 18. Rxd3 Rad8 19. Rxd8 Rxd8 $11 {[%mdl 4096] Endgame. KRN-KRN} 20. Kc2 a5 21. Ne4 Nf5 22. a4 Kd7 23. Ng3 Nd6 24. Rd1 Ke7 25. e4 Nb7 26. f4 Rxd1 27. Kxd1 Nd6 28. e5 Nf5 29. Nxf5+ gxf5 30. Kd2 Ke6 31. Kd3 {Weighted Error Value: White=0.03 (flawless) /Black=0.03 (flawless) .  Inaccurate:     	White=1     	Black=1      OK:         	White=10    	Black=11     Best:        	White=3     	Black=1} 1/2-1/2

[Event "45th FIDE Olympiad 2024"]
[Site "Budapest"]
[Date "2024.09.18"]
[Round "7.71"]
[White "Angel, Estanislao Gatjens C"]
[Black "Mohamed, Ali Dima"]
[Result "1-0"]
[WhiteElo "1849"]
[BlackElo "1761"]
[PlyCount "67"]
[EventDate "2024.09.05"]
[EventType "team-tourn"]
[EventCountry "HUN"]
[WhiteTeam "Equatorial Guinea"]
[BlackTeam "Djibouti"]
[BlackTeamCountry "DJI"]
[TimeControl "40/5400+30:1800+30"]

1. d4 d5 2. c4 e6 3. Nc3 Bb4 4. Nf3 Bxc3+ 5. bxc3 dxc4 6. e4 b5 7. a4 c6 8. Ba3 Ne7 9. Ne5 O-O 10. h4 Bb7 11. Qg4 Nd7 12. Nxd7 Qxd7 13. Bc5 f5 14. Qg5 Rf7 15. e5 Nd5 16. Qd2 f4 17. Be2 a5 18. Bf3 Ne7 19. Bh5 g6 20. Bf3 Nd5 21. h5 g5 22. h6 Ne7 23. Rh5 Rf5 24. Be4 Qe8 25. Bxf5 Qxh5 26. Bxe6+ Kf8 27. Qc2 Qg6 28. Qxg6 hxg6 29. h7 Kg7 30. Bxe7 Re8 31. Bf6+ Kxh7 32. Bf7 Rf8 33. e6 Bc8 34. O-O-O 1-0

[Event "45th FIDE Olympiad 2024"]
[Site "Budapest"]
[Date "2024.09.18"]
[Round "7.72"]
[White "Noritsyn, Nikolay"]
[Black "Lavrencic, Matic"]
[Result "1/2-1/2"]
[ECO "B40"]
[WhiteElo "2451"]
[BlackElo "2360"]
[Annotator "ChessBase"]
[PlyCount "165"]
[EventDate "2024.09.05"]
[EventType "team-tourn"]
[EventCountry "HUN"]
[SourceTitle "playchess.com"]
[Source "ChessBase"]
[SourceQuality "1"]
[WhiteTeam "Canada"]
[BlackTeam "Slovenia"]
[WhiteTeamCountry "CAN"]
[BlackTeamCountry "SLO"]
[TimeControl "40/5400+30:1800+30"]

1. e4 c5 2. Nf3 e6 3. d4 cxd4 4. Nxd4 Nf6 5. Nd2 d6 6. Bd3 Nbd7 7. c3 Be7 8. O-O O-O 9. Re1 Ne5 10. Bf1 Qc7 11. a4 Bd7 12. h3 Rad8 13. a5 Nc6 14. Nb5 Qb8 15. Nf3 d5 16. exd5 Nxd5 17. Qc2 a6 18. Nbd4 Nxd4 19. Nxd4 Bf6 20. Qe4 Qc7 21. Bd3 g6 22. Qf3 Bc8 23. Be4 Bg7 24. Bg5 Ne7 25. Bb1 h6 26. Bh4 Rde8 27. Ba2 Bd7 28. Bg3 e5 29. Qe4 Nf5 30. Bh2 Qc8 31. Nc2 Bc6 32. Qg4 Kh7 33. Nb4 Bd7 34. Rad1 Nd4 35. Qh4 Nc6 36. Nd5 Be6 37. Nb6 Qc7 38. Bxe6 Rxe6 39. Rd7 Qb8 40. b4 Rd6 41. Qc4 Kg8 42. Qc5 Rd8 43. Rxd6 Qxd6 44. Qxd6 Rxd6 45. Nc4 Rd5 46. g4 e4 47. Rxe4 Bxc3 48. Bf4 Bxb4 49. Bxh6 Kh7 50. Be3 Bxa5 51. Nxa5 Rxa5 52. Re8 Rb5 53. Kg2 a5 54. Ra8 Kg7 55. h4 f6 56. g5 fxg5 57. hxg5 Kf7 58. Kf3 Ne5+ 59. Kf4 Nc4 60. Bd4 Rf5+ 61. Kg4 Ne5+ 62. Bxe5 Rxe5 63. f4 Rb5 64. Kf3 Ke7 65. Ke4 Rb4+ 66. Ke5 a4 67. Ra5 Kf7 68. f5 Rg4 69. Rb5 Rxg5 70. Rxb7+ Kf8 71. Kf6 Rxf5+ 72. Kxg6 Rf3 73. Ra7 a3 74. Kg5 Ke8 75. Kg4 Rb3 76. Kf4 Kd8 77. Ke4 Kc8 78. Kd4 Kb8 79. Ra4 Rh3 80. Kc5 Kb7 81. Kb4 Rh4+ 82. Kxa3 Rxa4+ 83. Kxa4 1/2-1/2